bitfinex-derivatives/quotes_SOLF0:USTF0_20241025
["timestamp","ask_amount","ask_price","bid_price","bid_amount"]
[1729879918161,3.0072,166.64,166.52,40.7506521]
[1729879918162,37.7414521,166.77,166.63,37.7414521]
[1729879918361,0.99005515,166.76,166.65,37.7414521]
[1729879918558,0.99013776,166.75,166.63,37.7414521]
[1729879918768,37.7414521,166.74,166.53,2.2241]
[1729879918967,0.99013776,166.73,166.59,37.7414521]
[1729879919171,37.7414521,166.71,166.59,37.7414521]
[1729879919359,0.99013776,166.7,166.59,37.7414521]
[1729879919560,3.0078,166.6,166.59,37.7414521]
[1729879919956,343.0,166.83,166.59,75.4829042]
[1729879920161,3.0067,166.66,166.65,37.7414521]
[1729879920661,37.7414521,166.78,166.65,37.7414521]
[1729879920972,37.7414521,166.81,166.65,37.7414521]
[1729879921157,37.7414521,166.84,166.68,37.7414521]
[1729879921461,0.99015301,166.8,166.71,37.7414521]
[1729879921665,3.0045,166.79,166.74,37.7414521]
[1729879921865,0.99015301,166.8,166.77,37.7414521]
[1729879922170,37.7414521,166.87,166.74,37.7414521]
[1729879922359,37.7414521,166.84,166.71,37.7414521]
[1729879922868,37.7414521,166.84,166.59,102.6814521]
[1729879922869,37.7414521,166.9,166.74,37.7414521]
[1729879923169,37.7414521,166.87,166.74,37.7414521]
[1729879923367,3.0049,166.81,166.71,37.7414521]
[1729879923561,37.7414521,166.85,166.71,37.7414521]
[1729879923763,0.9827823,166.84,166.74,37.7414521]
[1729879923963,37.7414521,166.87,166.74,37.7414521]
[1729879924169,3.0056,166.78,166.74,37.7414521]
[1729879924366,37.7414521,166.84,166.68,37.7414521]
[1729879924562,0.98245969,166.83,166.68,37.7414521]
[1729879924759,37.7414521,166.81,166.68,37.7414521]
[1729879924956,37.7414521,166.74,166.6,37.7414521]
[1729879925258,37.7414521,166.68,166.54,37.7414521]
[1729879925468,37.7414521,166.66,166.51,37.7414521]
[1729879925768,37.7414521,166.68,166.48,37.7414521]
[1729879925769,37.7414521,166.62,166.48,37.7414521]
[1729879926082,37.7414521,166.54,166.35,2.3282]
[1729879926368,37.7414521,166.51,166.35,2.3282]
[1729879926570,37.7414521,166.6,166.34,37.7414521]
[1729879926774,5.62190413,166.59,166.34,37.7414521]
[1729879926970,37.7414521,166.54,166.38,37.7414521]
[1729879927174,4.6416,166.59,166.41,37.7414521]
[1729879927379,0.9803296,166.58,166.44,37.7414521]
[1729879927576,37.7414521,166.56,166.42,37.7414521]
[1729879927882,37.7414521,166.51,166.36,37.7414521]
[1729879928374,37.7414521,166.48,166.34,37.7414521]
[1729879928564,37.7414521,166.48,166.27,2.3565]
[1729879928565,343.0,166.63,166.37,37.7414521]
[1729879928874,37.7414521,166.49,166.34,37.7414521]
[1729879929174,37.7414521,166.6,166.34,37.7414521]
[1729879929175,37.7414521,166.52,166.4,37.7414521]
[1729879929372,37.7414521,166.58,166.43,37.7414521]
[1729879929681,37.7414521,166.55,166.43,37.7414521]
[1729879930067,37.7414521,166.5,166.37,37.7414521]
[1729879930372,37.7414521,166.58,166.17,37.7414521]
[1729879930373,37.7414521,166.41,166.28,37.7414521]
[1729879930680,37.7414521,166.41,166.18,4.5179]
[1729879930681,37.7414521,166.38,166.26,37.7414521]
[1729879930884,2.3608,166.51,166.28,37.7414521]
[1729879931173,37.7414521,166.4,166.26,37.7414521]
[1729879931367,3.0112,166.46,166.35,37.7414521]
[1729879931571,40.1022521,166.51,166.35,37.7414521]
[1729879931969,129.74752808,166.68,166.41,37.7414521]
[1729879932172,129.74752808,166.68,166.34,37.7414521]
[1729879932173,37.7414521,166.61,166.46,37.7414521]
[1729879932471,3.0089,166.58,166.49,37.7414521]
[1729879932671,37.7414521,166.64,166.49,37.7414521]
[1729879932978,3.0091,166.58,166.49,37.7414521]
[1729879933179,37.7414521,166.64,166.49,37.7414521]
[1729879933374,0.98102318,166.63,166.49,37.7414521]
[1729879933579,37.7414521,166.66,166.52,37.7414521]
[1729879933993,3.0079,166.64,166.52,37.7414521]
[1729879934188,37.7414521,166.77,166.63,37.7414521]
[1729879934590,0.98164477,166.76,166.68,37.7414521]
[1729879934797,0.98200606,166.79,166.66,37.7414521]
[1729879935095,37.7414521,166.77,166.63,37.7414521]
[1729879935293,37.7414521,166.74,166.6,37.7414521]
[1729879936297,37.7414521,166.77,166.63,37.7414521]
[1729879936489,39.9849521,166.8,166.68,37.7414521]
[1729879936684,2.2435,166.8,166.71,37.7414521]
[1729879937094,3.0054,166.77,166.71,37.7414521]
[1729879937300,67.3054,166.84,166.71,37.7414521]
[1729879937597,37.7414521,166.83,166.68,37.7414521]
[1729879937803,67.3054,166.84,166.71,37.7414521]
[1729879937993,0.98296726,166.83,166.71,37.7414521]
[1729879938303,0.98296726,166.83,166.76,37.7414521]
[1729879938495,0.98296726,166.83,166.73,37.7414521]
[1729879938797,2.3879,166.91,166.76,37.7414521]
[1729879938798,37.7414521,166.9,166.76,37.7414521]
[1729879939001,0.98326505,166.89,166.81,37.7414521]
[1729879939293,3.0032,166.88,166.81,37.7414521]
[1729879939500,2.2432,167.01,166.87,37.7414521]
[1729879939702,0.9837661,166.99,166.9,37.7414521]
[1729879940186,2.2432,167.01,166.84,37.7414521]
[1729879940187,0.9837661,166.98,166.84,37.7414521]
[1729879940389,3.0034,166.88,166.81,37.7414521]
[1729879940691,37.7414521,166.94,166.81,37.7414521]
[1729879940891,37.7414521,166.96,166.83,37.7414521]
[1729879941498,37.7414521,167.07,166.92,37.7414521]
[1729879941803,343.0,167.25,167.0,37.7414521]
[1729879941990,2.1915,167.27,167.03,37.7414521]
[1729879941991,37.7414521,167.18,167.03,37.7414521]
[1729879942192,37.7414521,167.15,167.0,37.7414521]
[1729879942404,0.98445428,167.14,167.0,37.7414521]
[1729879942705,37.7414521,167.1,166.95,37.7414521]
[1729879942895,37.7414521,167.07,166.92,37.7414521]
[1729879943094,3.002,166.95,166.89,37.7414521]
[1729879943403,37.7414521,167.04,166.89,37.7414521]
[1729879943699,37.7414521,167.07,166.92,37.7414521]
[1729879944002,129.33377314,167.22,167.03,37.7414521]
[1729879944200,38.7259661,167.21,167.06,37.7414521]
[1729879944406,0.984514,167.2,167.09,37.7414521]
[1729879944595,129.33377314,167.22,167.09,37.7414521]
[1729879944596,2.9989,167.13,167.09,37.7414521]
[1729879944999,37.7414521,167.23,167.09,37.7414521]
[1729879945197,0.98496598,167.22,167.09,37.7414521]
[1729879945397,0.98496598,167.22,167.12,37.7414521]
[1729879945596,4.4069,167.25,167.15,37.7414521]
[1729879945797,0.98513255,167.24,167.15,37.7414521]
[1729879945997,37.7414521,167.32,167.18,37.7414521]
[1729879946208,0.98529122,167.31,167.18,37.7414521]
[1729879946502,0.98529122,167.31,166.94,2.388]
[1729879946503,37.7414521,167.21,166.94,2.388]
[1729879946702,37.7414521,167.18,167.03,37.7414521]
[1729879946893,37.7414521,167.15,167.01,37.7414521]
[1729879947090,0.98478017,167.14,166.93,2.2051]
[1729879947392,37.7414521,167.18,166.93,2.2051]
[1729879947393,0.98478017,167.13,167.03,37.7414521]
[1729879947591,0.98478017,167.12,167.0,37.7414521]
[1729879947800,37.7414521,167.17,167.03,37.7414521]
[1729879948001,3.0,167.06,167.03,37.7414521]
[1729879948207,37.7414521,167.11,166.97,37.7414521]
[1729879948399,2.9998,167.07,166.97,37.7414521]
[1729879948595,37.7414521,167.14,167.0,37.7414521]
[1729879948797,0.9848001,167.13,167.0,37.7414521]
[1729879949402,37.7414521,167.17,167.03,37.7414521]
[1729879949609,2.3678,167.19,166.92,37.7414521]
[1729879949610,2.3678,167.19,167.08,37.7414521]
[1729879949807,2.3678,167.19,167.0,37.7414521]
[1729879949808,0.98508955,167.18,167.11,37.7414521]
[1729879950005,37.7414521,167.28,167.14,37.7414521]
[1729879950311,0.98542634,167.27,167.14,37.7414521]
[1729879950509,0.98542634,167.27,167.11,37.7414521]
[1729879950701,37.7414521,167.25,167.11,37.7414521]
[1729879950897,0.98567434,167.24,167.11,37.7414521]
[1729879951200,2.9973,167.17,167.11,37.7414521]
[1729879951401,0.98567434,167.24,167.11,37.7414521]
[1729879951602,0.98601977,167.23,167.14,37.7414521]
[1729879951807,0.98601977,167.22,167.14,37.7414521]
[1729879952108,0.98601977,167.22,167.09,37.7414521]
[1729879952109,37.7414521,167.35,167.19,37.7414521]
[1729879952306,0.98679725,167.34,167.24,37.7414521]
[1729879952508,0.98679725,167.4,167.24,37.7414521]
[1729879952714,0.98679725,167.33,167.22,37.7414521]
[1729879952908,0.98679725,167.33,167.17,37.7414521]
[1729879952909,37.7414521,167.35,167.17,37.7414521]
[1729879953115,37.7414521,167.35,167.2,37.7414521]
[1729879953313,0.98682891,167.34,167.2,37.7414521]
[1729879953508,332.2408,167.63,167.33,74.71860068]
[1729879953708,37.35930034,167.58,167.27,64.76]
[1729879954009,37.35930034,167.57,167.42,37.35930034]
[1729879954205,39.69120034,167.61,167.45,37.35930034]
[1729879954511,39.69120034,167.61,167.42,37.35930034]
[1729879954512,0.98740373,167.57,167.42,37.35930034]
[1729879954704,0.9803963,167.56,167.42,37.35930034]
[1729879955104,39.69120034,167.61,167.48,37.35930034]
[1729879955407,2.9885,167.57,167.45,37.35930034]
[1729879955606,2.3319,167.61,167.47,37.35930034]
[1729879955808,0.98062008,167.6,167.5,37.35930034]
[1729879956006,0.98062008,167.6,167.57,37.35930034]
[1729879956204,37.35930034,167.74,167.57,37.35930034]
[1729879956404,2.9883,167.61,167.57,37.35930034]
[1729879956607,37.35930034,167.68,167.5,37.35930034]
[1729879956799,0.98109268,167.67,167.5,37.35930034]
[1729879957002,332.2408,167.66,167.25,37.35930034]
[1729879957204,37.35930034,167.54,167.39,37.35930034]
[1729879957405,37.35930034,167.6,167.46,37.35930034]
[1729879957605,37.35930034,167.57,167.26,1.0]
[1729879957805,0.98085106,167.56,167.39,37.35930034]
[1729879958007,37.35930034,167.47,167.05,18.11]
[1729879958314,37.35930034,167.47,166.93,251.48]
[1729879958315,37.35930034,167.54,167.38,37.35930034]
[1729879958612,0.98058658,167.53,167.5,37.35930034]
[1729879958919,37.35930034,167.64,167.5,37.35930034]
[1729879959103,2.3627,167.66,167.36,37.35930034]
[1729879959104,37.35930034,167.58,167.44,37.35930034]
[1729879959305,37.35930034,167.58,167.41,37.35930034]
[1729879959306,37.35930034,167.55,167.41,37.35930034]
[1729879959515,37.35930034,167.55,167.36,37.35930034]
[1729879959516,2.9916,167.44,167.36,37.35930034]
[1729879959718,37.35930034,167.58,167.42,37.35930034]
[1729879960032,37.35930034,167.61,167.48,37.35930034]
[1729879960208,0.98133239,167.6,167.51,37.35930034]
[1729879960406,0.98133239,167.6,167.42,37.35930034]
[1729879960407,37.35930034,167.73,167.57,37.35930034]
[1729879960610,0.98184037,167.72,167.59,37.35930034]
[1729879960805,37.35930034,167.82,167.67,37.35930034]
[1729879961015,37.35930034,167.76,167.59,37.35930034]
[1729879961313,37.35930034,167.76,167.5,37.35930034]
[1729879961314,37.35930034,167.73,167.57,37.35930034]
[1729879961506,0.98206995,167.75,167.5,37.35930034]
[1729879961507,0.98182069,167.72,167.59,37.35930034]
[1729879961714,37.35930034,167.77,167.63,37.35930034]
[1729879961906,0.98198625,167.76,167.59,37.35930034]
[1729879962113,37.35930034,167.74,167.59,37.35930034]
[1729879962313,2.373,167.82,167.59,37.35930034]
[1729879962314,2.1957,167.81,167.59,37.35930034]
[1729879962512,0.98203317,167.73,167.67,37.35930034]
[1729879962717,0.98203317,167.73,167.58,37.35930034]
[1729879962718,37.35930034,167.73,167.58,37.35930034]
[1729879962911,2.9868,167.68,167.58,37.35930034]
[1729879963112,2.9868,167.68,167.42,288.83930034]
[1729879963113,37.35930034,167.7,167.55,37.35930034]
[1729879963824,37.35930034,167.67,167.52,37.35930034]
[1729879964009,2.9892,167.55,167.52,37.35930034]
[1729879964214,37.35930034,167.7,167.52,37.35930034]
[1729879964514,2.9877,167.59,167.57,37.35930034]
[1729879964719,37.35930034,167.68,167.54,37.35930034]
[1729879965121,2.9882,167.56,167.54,37.35930034]
[1729879965312,37.35930034,167.68,167.5,37.35930034]
[1729879965505,2.987,167.63,167.5,37.35930034]
[1729879965711,37.35930034,167.65,167.5,37.35930034]
[1729879965911,37.35930034,167.62,167.47,37.35930034]
[1729879966115,37.35930034,167.62,167.5,37.35930034]
[1729879966314,4.6713,167.64,167.53,37.35930034]
[1729879966714,4.6713,167.64,167.55,37.35930034]
[1729879967117,5.9698,167.75,167.58,37.35930034]
[1729879967331,40.70481962,167.74,167.58,37.35930034]
[1729879967525,0.98161928,167.73,167.61,37.35930034]
[1729879967718,2.9872,167.62,167.61,37.35930034]
[1729879968724,2.9857,167.71,167.61,37.35930034]
[1729879969020,2.3074,167.79,167.69,37.35930034]
[1729879969217,2.3074,167.79,167.75,37.35930034]
[1729879969416,2.9843,167.76,167.75,37.35930034]
[1729879970212,2.3527,167.84,167.67,37.35930034]
[1729879970416,37.35930034,167.8,167.67,37.35930034]
[1729879970620,2.3527,167.84,167.7,37.35930034]
[1729879970819,2.9852,167.71,167.7,37.35930034]
[1729879971316,2.3527,167.84,167.7,74.71860068]
[1729879971520,2.2732,167.91,167.75,37.35930034]
[1729879971728,2.9841,167.76,167.75,37.35930034]
[1729879971930,2.3527,167.94,167.75,74.71860068]
[1729879972224,0.98291076,167.93,167.8,37.35930034]
[1729879972418,37.35930034,167.91,167.75,37.35930034]
[1729879972725,37.35930034,167.85,167.69,37.35930034]
[1729879972922,37.35930034,167.83,167.66,37.35930034]
[1729879973118,37.35930034,167.8,167.66,37.35930034]
[1729879973316,37.35930034,167.78,167.63,37.35930034]
[1729879973626,2.986,167.64,167.63,37.35930034]
[1729879974010,37.35930034,167.78,167.63,37.35930034]
[1729879974215,4.6828,167.82,167.67,37.35930034]
[1729879974427,37.35930034,167.79,167.67,37.35930034]
[1729879974624,2.9852,167.68,167.67,37.35930034]
[1729879976013,37.35930034,167.85,167.67,74.71860068]
[1729879976225,2.9842,167.74,167.72,37.35930034]
[1729879976421,2.3892,167.87,167.72,37.35930034]
[1729879976621,37.35930034,167.86,167.72,37.35930034]
[1729879976831,37.35930034,167.83,167.69,37.35930034]
[1729879977324,2.9848,167.7,167.69,37.35930034]
[1729879977520,37.35930034,167.8,167.66,37.35930034]
[1729879977913,2.9853,167.67,167.66,37.35930034]
[1729879978815,37.35930034,167.8,167.66,37.35930034]
[1729879979024,2.9845,167.72,167.69,37.35930034]
[1729879979218,2.3892,167.87,167.71,37.35930034]
[1729879979527,2.3892,167.87,167.75,37.35930034]
[1729879980118,2.9831,167.8,167.75,37.35930034]
[1729879980323,2.3892,167.87,167.75,37.35930034]
[1729879980523,5.9595,167.99,167.78,37.35930034]
[1729879980729,37.35930034,167.96,167.84,37.35930034]
[1729879981028,39.71200034,167.94,167.82,37.35930034]
[1729879981232,2.9822,167.82,167.79,37.35930034]
[1729879981423,37.35930034,167.94,167.75,37.35930034]
[1729879981626,37.35930034,167.91,167.75,37.35930034]
[1729879981816,37.35930034,167.91,167.69,64.5]
[1729879981817,37.35930034,167.91,167.78,37.35930034]
[1729879982222,37.35930034,167.91,167.75,37.35930034]
[1729879982428,37.35930034,167.87,167.75,37.35930034]
[1729879982619,37.35930034,167.91,167.75,37.35930034]
[1729879982927,37.35930034,167.84,167.69,37.35930034]
[1729879983228,64.48,167.92,167.75,37.35930034]
[1729879983525,43.32080034,167.9,167.75,37.35930034]
[1729879983727,2.9832,167.76,167.75,37.35930034]
[1729879983926,43.32080034,167.9,167.75,37.35930034]
[1729879984129,37.35930034,167.87,167.72,37.35930034]
[1729879984435,37.35930034,167.84,167.69,37.35930034]
[1729879984726,5.9618,167.89,167.75,37.35930034]
[1729879985031,37.35930034,167.9,167.75,37.35930034]
[1729879985430,2.9837,167.73,167.72,37.35930034]
[1729879985931,2.9835,167.74,167.72,37.35930034]
[1729879986228,2.3318,167.86,167.72,37.35930034]
[1729879986430,2.9869,167.55,167.51,37.35930034]
[1729879986629,583.94362474,167.85,167.54,37.35930034]
[1729879986630,2.2697,167.85,167.54,37.35930034]
[1729879986932,37.35930034,167.79,167.63,37.35930034]
[1729879987137,2.3723,167.83,167.61,37.35930034]
[1729879987431,37.35930034,167.73,167.57,37.35930034]
[1729879987626,37.35930034,167.76,167.6,37.35930034]
[1729879987826,2.3723,167.83,167.66,37.35930034]
[1729879988022,2.3723,167.83,167.59,64.46]
[1729879988221,37.35930034,167.81,167.65,37.35930034]
[1729879988430,37.35930034,167.81,167.59,64.46]
[1729879988431,2.385,167.91,167.66,37.35930034]
[1729879988625,2.9837,167.73,167.66,37.35930034]
[1729879988823,37.35930034,167.79,167.66,37.35930034]
[1729879989026,37.35930034,167.79,167.59,64.46]
[1729879989027,37.35930034,167.79,167.63,37.35930034]
[1729879989326,37.35930034,167.76,167.59,64.46]
[1729879989525,37.35930034,167.82,167.68,37.35930034]
[1729879989726,2.9835,167.75,167.68,37.35930034]
[1729879989929,37.35930034,167.84,167.65,37.35930034]
[1729879990132,10.6034,167.9,167.65,37.35930034]
[1729879990133,37.35930034,167.8,167.65,37.35930034]
[1729879990322,10.6034,167.9,167.59,37.35930034]
[1729879990323,37.35930034,167.74,167.59,37.35930034]
[1729879990523,37.35930034,167.74,167.56,37.35930034]
[1729879990725,37.35930034,167.76,167.49,64.46]
[1729879990726,2.9862,167.59,167.54,37.35930034]
[1729879990928,37.35930034,167.68,167.51,37.35930034]
[1729879991133,37.35930034,167.65,167.51,37.35930034]
[1729879991747,37.35930034,167.67,167.54,37.35930034]
[1729879992130,37.35930034,167.7,167.54,37.35930034]
[1729879992327,37.35930034,167.65,167.48,37.35930034]
[1729879992530,37.35930034,167.62,167.48,37.35930034]
[1729879992929,2.9868,167.55,167.52,37.35930034]
[1729879993139,37.35930034,167.65,167.52,37.35930034]
[1729879993443,37.35930034,167.65,167.42,37.35930034]
[1729879993444,2.9865,167.56,167.51,37.35930034]
[1729879993741,37.35930034,167.62,167.46,37.35930034]
[1729879993939,37.35930034,167.62,167.42,37.35930034]
[1729879993940,37.35930034,167.59,167.43,37.35930034]
[1729879994341,332.2408,167.72,167.43,37.35930034]
[1729879994342,332.2408,167.72,167.47,37.35930034]
[1729879994539,37.35930034,167.67,167.5,37.35930034]
[1729879995048,37.35930034,167.67,167.36,0.7138]
[1729879995049,37.35930034,167.58,167.45,37.35930034]
[1729879995341,37.35930034,167.61,167.45,37.35930034]
[1729879995546,37.35930034,167.58,167.45,37.35930034]
[1729879996445,37.35930034,167.56,167.42,37.35930034]
[1729879996640,37.35930034,167.61,167.45,37.35930034]
[1729879996841,37.35930034,167.61,167.42,37.35930034]
[1729879996842,37.35930034,167.61,167.48,37.35930034]
[1729879997044,37.35930034,167.61,167.36,0.7138]
[1729879997045,37.35930034,167.61,167.45,37.35930034]
[1729879997239,5.9698,167.66,167.48,37.35930034]
[1729879997444,0.98215867,167.65,167.53,37.35930034]
[1729879997651,37.35930034,167.67,167.53,37.35930034]
[1729879997841,0.98234293,167.66,167.53,37.35930034]
[1729879998041,0.98234293,167.66,167.59,37.35930034]
[1729879998042,2.9851,167.64,167.59,37.35930034]
[1729879998242,4.6452,167.74,167.62,37.35930034]
[1729879998545,2.9837,167.72,167.67,37.35930034]
[1729879998950,37.35930034,167.81,167.67,37.35930034]
[1729879999547,2.2482,167.82,167.64,37.35930034]
[1729879999548,37.35930034,167.78,167.64,37.35930034]
[1729879999747,37.35930034,167.76,167.61,37.35930034]
[1729879999950,37.35930034,167.73,167.58,37.35930034]
[1729880000244,37.35930034,167.81,167.67,37.35930034]
[1729880000439,37.35930034,167.78,167.64,37.35930034]
[1729880000844,2.2482,167.82,167.64,37.35930034]
[1729880001047,37.35930034,167.79,167.64,37.35930034]
[1729880001251,39.60750034,167.82,167.67,37.35930034]
[1729880001452,37.35930034,167.79,167.65,37.35930034]
[1729880001747,37.35930034,167.74,167.59,37.35930034]
[1729880002340,37.35930034,167.76,167.62,37.35930034]
[1729880002543,2.9847,167.66,167.59,37.35930034]
[1729880003253,37.35930034,167.76,167.62,37.35930034]
[1729880003444,2.2482,167.82,167.62,37.35930034]
[1729880003641,37.35930034,167.79,167.65,37.35930034]
[1729880003841,37.35930034,167.76,167.59,37.35930034]
[1729880004045,2.2482,167.82,167.68,37.35930034]
[1729880004244,0.98326325,167.81,167.68,37.35930034]
[1729880004647,0.98326325,167.81,167.71,37.35930034]
[1729880005255,0.98326325,167.81,167.74,37.35930034]
[1729880005451,2.2482,167.82,167.74,37.35930034]
[1729880005652,4.6547,167.86,167.68,37.35930034]
[1729880005653,2.1904,167.91,167.77,37.35930034]
[1729880005951,2.3757,167.95,167.85,37.35930034]
[1729880006143,2.3757,167.95,167.75,37.35930034]
[1729880006144,0.98386924,167.94,167.88,37.35930034]
[1729880006344,0.98386924,167.99,167.85,37.35930034]
[1729880006550,41.93850034,168.0,167.85,37.35930034]
[1729880006551,37.35930034,167.97,167.85,37.35930034]
[1729880006753,0.98421847,167.96,167.82,37.35930034]
[1729880006954,0.98421847,167.96,167.85,37.35930034]
[1729880007255,4.5792,168.0,167.88,37.35930034]
[1729880007552,0.98451005,167.99,167.88,37.35930034]
[1729880007755,37.35930034,167.96,167.8,37.35930034]
[1729880008059,2.98,167.91,167.82,37.35930034]
[1729880008247,2.98,167.91,167.79,64.46]
[1729880008248,2.1904,168.0,167.87,37.35930034]
[1729880008448,0.9845409,167.99,167.87,37.35930034]
[1729880008658,38.34384124,167.99,167.83,37.35930034]
[1729880008849,37.35930034,167.99,167.83,37.35930034]
[1729880009253,2.1904,168.0,167.83,37.35930034]
[1729880009254,2.2259,168.05,167.83,37.35930034]
[1729880009452,4.76,167.98,167.83,37.35930034]
[1729880009654,2.9803,167.9,167.83,37.35930034]
[1729880009957,4.76,167.98,167.83,37.35930034]
[1729880010145,0.98496428,167.97,167.83,37.35930034]
[1729880010346,4.76,167.98,167.83,37.35930034]
[1729880010545,4.76,167.98,167.89,37.35930034]
[1729880010753,30.81719471,168.15,167.97,37.35930034]
[1729880011056,37.35930034,168.09,167.95,37.35930034]
[1729880011257,37.35930034,168.07,167.92,37.35930034]
[1729880011453,2.9786,167.99,167.92,37.35930034]
[1729880011646,37.35930034,168.04,167.92,37.35930034]
[1729880012254,37.35930034,168.04,167.83,37.35930034]
[1729880012255,0.9858035,168.03,167.89,37.35930034]
[1729880012760,2.9798,167.93,167.86,37.35930034]
[1729880012960,37.35930034,168.01,167.86,37.35930034]
[1729880013450,332.2408,168.13,167.91,37.35930034]
[1729880013451,0.98580094,168.0,167.91,37.35930034]
[1729880013649,2.9789,167.98,167.93,37.35930034]
[1729880013854,37.35930034,168.06,167.93,37.35930034]
[1729880014153,0.98607896,168.05,167.93,37.35930034]
[1729880014352,0.98607896,168.04,167.93,37.35930034]
[1729880014551,0.98607896,168.03,167.93,37.35930034]
[1729880014863,37.35930034,168.07,167.91,37.35930034]
[1729880015067,37.35930034,168.07,167.93,37.35930034]
[1729880015068,0.98626799,168.06,167.93,37.35930034]
[1729880015356,0.98626799,168.06,167.9,37.35930034]
[1729880015562,37.35930034,168.04,167.9,37.35930034]
[1729880015756,0.9862514,168.03,167.9,37.35930034]
[1729880015955,0.98621052,168.03,167.9,37.35930034]
[1729880016151,2.9781,168.03,167.96,37.35930034]
[1729880016351,2.3939,168.16,168.01,37.35930034]
[1729880016561,0.98675393,168.15,168.01,37.35930034]
[1729880017060,37.35930034,168.12,167.98,37.35930034]
[1729880017258,2.9774,168.08,168.01,37.35930034]
[1729880017458,37.35930034,168.14,168.01,37.35930034]
[1729880017655,0.9869848,168.13,168.03,37.35930034]
[1729880017857,37.35930034,168.14,168.0,37.35930034]
[1729880018154,2.63494766,168.31,168.13,37.35930034]
[1729880018357,31.61937198,168.35,168.21,37.35930034]
[1729880018358,37.35930034,168.35,168.21,37.35930034]
[1729880018754,2.9741,168.27,168.21,37.35930034]
[1729880018954,37.35930034,168.35,168.21,37.35930034]
[1729880019155,0.98047048,168.34,168.21,37.35930034]
[1729880019463,2.1887,168.4,168.18,37.35930034]
[1729880019464,37.35930034,168.32,168.18,37.35930034]
[1729880019662,0.98047048,168.31,168.18,37.35930034]
[1729880019856,0.98042946,168.3,168.28,37.35930034]
[1729880020072,7.90484299,168.52,168.28,37.35930034]
[1729880020073,37.35930034,168.43,168.28,37.35930034]
[1729880020256,0.98103511,168.42,168.32,37.35930034]
[1729880020456,37.35930034,168.47,168.32,37.35930034]
[1729880020655,0.98109705,168.46,168.32,37.35930034]
[1729880020853,2.971,168.45,168.35,37.35930034]
[1729880021057,37.35930034,168.5,168.38,37.35930034]
[1729880021256,2.1831,168.52,168.38,37.35930034]
[1729880021461,2.9706,168.48,168.38,37.35930034]
[1729880021654,39.54240034,168.52,168.38,37.35930034]
[1729880022056,2.1831,168.52,168.38,37.35930034]
[1729880022972,37.35930034,168.51,168.35,37.35930034]
[1729880023564,37.35930034,168.45,168.32,37.35930034]
[1729880023753,2.1831,168.52,168.35,37.35930034]
[1729880023955,38.34090453,168.5,168.37,37.35930034]
[1729880024460,38.34090453,168.5,168.35,37.35930034]
[1729880024766,0.98120198,168.49,168.35,37.35930034]
[1729880024963,38.34090453,168.5,168.33,37.35930034]
[1729880025264,38.34090453,168.5,168.36,37.35930034]
[1729880025668,0.98124023,168.49,168.27,64.32]
[1729880025867,4.646,168.66,168.44,37.35930034]
[1729880026055,37.35930034,168.57,168.44,37.35930034]
[1729880026462,2.9701,168.52,168.44,37.35930034]
[1729880026658,37.35930034,168.57,168.44,37.35930034]
[1729880026858,37.35930034,168.57,168.47,37.35930034]
[1729880026859,0.9741052,168.56,168.47,37.35930034]
[1729880027661,0.97414026,168.55,168.49,37.35930034]
[1729880027866,249.84,169.04,168.52,37.35930034]
[1729880027867,19.7587947,168.58,168.52,37.35930034]
[1729880028058,0.97413385,168.57,168.52,37.35930034]
[1729880028263,4.5919,168.77,168.55,37.35930034]
[1729880028463,37.35930034,168.69,168.55,37.35930034]
[1729880028665,2.9685,168.61,168.53,37.35930034]
[1729880028871,19.75464985,168.69,168.5,37.35930034]
[1729880029177,2.9689,168.59,168.5,37.35930034]
[1729880029471,37.35930034,168.64,168.45,64.24]
[1729880029472,37.35930034,168.64,168.53,37.35930034]
[1729880029663,2.9683,168.63,168.53,37.35930034]
[1729880029873,37.35930034,168.68,168.53,37.35930034]
[1729880030267,19.75598385,168.63,168.53,37.35930034]
[1729880030669,19.75598385,168.63,168.56,37.35930034]
[1729880031269,19.75464985,168.69,168.56,37.35930034]
[1729880031480,19.75464985,168.69,168.59,37.35930034]
[1729880031976,5.9262,168.92,168.66,74.71860068]
[1729880032172,37.35930034,168.86,168.71,37.35930034]
[1729880032377,19.73773678,168.87,168.74,37.35930034]
[1729880032571,19.73773678,168.87,168.77,37.35930034]
[1729880032772,37.35930034,168.91,168.77,37.35930034]
[1729880032973,2.9643,168.85,168.8,37.35930034]
[1729880033175,19.72910333,168.85,168.8,37.35930034]
[1729880033475,19.72910333,168.85,168.83,37.35930034]
[1729880033675,332.2408,169.14,168.83,37.35930034]
[1729880033882,332.2408,169.14,168.86,37.35930034]
[1729880033883,37.35930034,169.0,168.86,37.35930034]
[1729880034073,2.91069899,169.06,168.86,37.35930034]
[1729880034271,4.5246,169.07,168.92,37.35930034]
[1729880034475,2.9613,169.02,168.92,37.35930034]
[1729880034679,19.71475171,169.03,168.94,37.35930034]
[1729880034972,2.9624,168.98,168.91,36.98512755]